Workbook

Sheet 湛江纸箱
A1: 湛江晨鸣包装箱报价单
A4: 序号 | B4: 物料名称 | C4: 技术要求 | D4: 规格型号 | E4: 单价（元/平方) | F4: 备注
A5: 1 | B5: 水印包装箱 | C5: 1、a、包装箱耐破强度（正反面）：8kg/cm2以上； b、包装箱边压强度：4500N/m以上；纸箱两侧不要留孔。 2、包装箱所用纸种：外层300克A级涂布牛卡纸，中间（瓦楞层）140克高强瓦楞纸(B坑)，里层200克A级本色牛卡纸（以达到强度指标为标准）；包装箱厚度：B坑≧3.5mm（详见技术协议） | D5: 水印，印刷颜色为单色至六色印刷。
A6: 2 | B6: 胶印包装箱胶印B坑上光油 | C6: 1、a、包装箱耐破强度（正反面）：8kg/cm2以上； b、包装箱边压强度：4500N/m以上；纸箱两侧不要留孔。c、纸箱两侧不要留孔。 （2）包装箱所用纸种：外层300克A级涂布牛卡纸，中间（瓦楞层）140克高强瓦楞纸，里层200克A级本色牛卡纸（以达到强度指标为标准）；包装箱厚度：B坑≧3.5mm（详见技术协议） | D6: 胶印，印刷颜色为单色至六色印刷。
A7: 3 | B7: 胶印包装箱胶印E坑覆膜 | C7: 1、a、包装箱耐破强度（正反面）：8kg/cm2以上； b、包装箱边压强度：4500N/m以上；纸箱两侧不要留孔。c、纸箱两侧不要留孔。 （2）包装箱所用纸种：外层300克A级涂布牛卡纸，中间（瓦楞层）140克高强瓦楞纸，里层200克A级本色牛卡纸（以达到强度指标为标准）；包装箱厚度：E坑≧3.0mm（详见技术协议） | D7: 胶印，印刷颜色为单色至六色印刷。
A8: 报价为含税（16%增值税）及运费到湛江晨鸣价格。执行期限一年。
A9: 价格有效期30天
A10: 付款方式：
A11: 报价时间：
A12: 报价单位：
A13: 报价人/联系方式：
A14: 注册资金：
A15: 时间：

Sheet 封头
A1: 晨鸣集团封头招标报价单 | H1: 外封头参数标准规范如下：
A2: 日期：2020.05.03 | F2: 单位:元/㎡
A3: 序号 | B3: 规格型号 | C3: 子公司 | D3: 月用量 万㎡ | E3: 单价 | F3: 备注
A5: 1 | B5: 五层瓦楞纸内封头(直径790-1500） | C5: 寿光 | D5: 25 | H5: 1、使用材料：170g/m2牛皮纸+20g/m2PE
A6: 2 | B6: 三层无印刷封头(直径850-1000)+翼边300 | C6: 寿光 | D6: 2 | H6: 2、定量：≥190g/m2
A7: 3 | B7: 五层高强瓦楞纸内封头加厚680-970 | C7: 寿光 | D7: 4 | H7: 3、直径：偏差±5mm
A8: 4 | B8: 热熔胶外封头(直径680-1500) | C8: 寿光 | D8: 28 | H8: 4、外观：平整光滑、无破损，无漏涂及脱层现象
A9: 5 | B9: 五层瓦楞纸内封头(直径830-1490) | C9: 武汉 | D9: 4
A10: 6 | C10: 江西 | D10: 14 | H10: 内封头参数标准规范如下：
A11: 7 | B11: 热熔胶外封头(直径830-1470) | C11: 湛江 | D11: 42
A12: 8 | C12: 武汉 | D12: 4
A13: 9 | C13: 江西 | D13: 12 | H13: 检验项目 | I13: 单位 | J13: 指标标准
A14: 10 | C14: 吉林 | D14: 5 | H14: 克 重 | I14: g/m2 | J14: 680g/m2±15 g/m2
A15: 11 | B15: 五层瓦楞纸内封头(直径830-1140) | C15: 吉林 | D15: 5 | H15: 厚 度 | I15: mm | J15: 5 mm±0.5 mm
A16: 12 | B16: 五层瓦楞纸内封头(直径800-1300) | C16: 湛江 | D16: 46 | H16: 直径偏差 | I16: mm | J16: ±5
A17: 备注：报价为含税（13%增值税）及运费到晨鸣集团指定工厂价格，价格执行：一年。 | H17: 材 料 | I17: — | J17: 150 g/m2箱板纸+瓦楞纸+箱板纸+瓦楞纸+120 g/m2箱板纸
H18: 质量要求 | I18: 1、不能有皱折、孔洞、脏污、缺纸、破裂；
A19: 包装是否回收： | I19: 2、 切口平整、光滑；
A20: 付款方式： | I20: 3、 不允许有卷曲、潮湿、折瓦、断瓦；
A21: 报价时间：
A22: 报价单位： | C22: 单位盖章：
A23: 报价人/联系方式：
A24: 注册资金：

Sheet 木塞子
A1: 木渣塞子报价表
G3: 单位：元/个
A4: 序号 | B4: 名称 | C4: 规格型号 | D4: 使用单位 | E4: 单位 | F4: 单价 | G4: 供货能力 个/月
A5: 1 | B5: 普通木渣塞子1# | C5: 直径152+1mm、孔径30±2mm、厚度25±2mm | D5: 寿光晨鸣 | E5: 个
A6: 2 | B6: 高强木渣塞子2# | C6: （305±1.5mm、孔径80±1.5mm、厚度≥30mm） | D6: 寿光晨鸣 | E6: 个
D7: 江西晨鸣 | E7: 个
D8: 湛江晨鸣 | E8: 个
A9: 合计
A11: 以上价格为含13%增值税到厂价，价格执行期限一年
A12: 报价有效期30天
A13: 报价单位：
A14: 联系方式：
A15: 付款方式
A16: 主要业绩；

Sheet 木塞子标准
A1: 1#木塞子技术标准：
A2: 1、表面光滑、圆润不掉木屑。
A3: 2、直径152毫米，孔径30毫米， 外径±1.5毫米(按需方需求）、内经±2毫米
A4: 3、厚度23毫米，±1毫米
A5: 4、木塞子达到比重630㎏/m3
A7: 2#木塞子技术标准：
A8: 1、表面光滑、圆润不能有掉渣、掉粉现象。
A9: 2、直径达到305±1.5毫米(按需方需求），孔经达到80±1.5毫米， 厚度30±1.5毫米。
A10: 3、木塞子达到比重630㎏/m3
A11: 4、冲击试验要求：冲击锤的重量为3000克，冲击锤的高度为500mm，冲击锤在500mm高度的位置自由落体冲击产品外径，产品不得发生破裂或破碎。
A12: 3#、4#木塞子技术标准：
A13: 1、表面光滑、圆润不能有掉渣、掉粉现象，VOCS检测合格。
A14: 2、4#尺寸，直径152±1.5mm(按需方需求）、孔径40±1mm、厚度40±2mm；5#直径305±1.5mm(按需方需求）、孔径80±1mm、厚度40±2mm
A15: 3、木塞子达到比重630㎏/m3
A16: 4、冲击试验要求：冲击锤的重量为3000克，冲击锤的高度为500mm，冲击锤在500mm高度的位置自由落体冲击产品外径，产品不得发生破裂或破碎。

Sheet 寿光纸箱
A1: 寿光晨鸣用纸箱招标报价单
A2: 序号 | B2: 物料名称 | C2: 技术要求 | D2: 单价（元/平方) | E2: 备注 | F2: 计算公式
A3: 1 | B3: 胶印包装箱 B/E坑上光油 | C3: 包装箱耐破强度（正反面）7kg/cm2以上，包装箱边压强度3500N/m以上；包装箱用纸：外层200克A级涂布牛卡纸，中间（瓦楞层）140克高强瓦楞纸，里层170克A级本色牛卡纸（以达到强度指标为标准），包装箱厚度：B坑≧3mm，E坑≧2mm | E3: 寿光静电纸 | F3: 【长+（高*2）+70】*【宽+（高*2）+20】
A4: 2 | B4: (双瓦)五层箱 | C4: (双瓦)五层箱：880g/m2,面层200g/m2 木桨挂面板,芯层3层 高强瓦楞纸,底层200g/m2 B级牛皮箱板纸,抗压≥4000N,耐破度≥1100KPA | E4: 寿光生活纸 | F4: 【（长+宽）*2+70】*（宽+高+20）
A5: 3 | B5: (单瓦)三层箱 | C5: (单瓦)三层箱：560g/m2,面层200g/m2 木桨挂面板,芯层1层 高强瓦楞纸,底层200g/m2 B级牛皮箱板纸,手帕纸抗压≥2500N.卷简纸抗压≥2800N,耐破度≥700KPA | E5: 寿光生活纸 | F5: 【（长+宽）*2+60】*（宽+高+15）
A6: 4 | B6: (单瓦)三层水印箱: | C6: 面纸:170克白板纸,里纸:160克箱板纸,中间:高强度B级130克瓦楞纸 | E6: 晨鸣板材
A7: 5 | B7: (单瓦)三层胶印箱(覆膜): | C7: 面纸,白板纸250克覆膜,里纸:160克箱板纸,中间:高强度B级130克瓦楞纸 | E7: 晨鸣板材
A8: 报价为含税（13%增值税）及运费、制版费等所有费用一票到厂价格。包装物不回收。执行期限：一年。
A9: 产品产地：
A10: 付款方式：
A11: 报价日期：
A12: 报价单位：
A13: 报价人/联系方式：
A14: 注册资金：
A15: 销售业绩：
A16: 备注：

Sheet 水溶胶带
A1: 晨鸣集团水溶性胶带招标报价单
A3: 序号 | B3: 产品名称 | C3: 规格尺寸 （宽MM*长M） | D3: 月用量 (盘) | E3: 型号 | F3: 单价 | G3: 备注
A5: 1 | B5: 涂布机飞接补强 | C5: 50*50 | D5: 328
A6: 2 | B6: 引纸风筝 | C6: 50*50 | D6: 470
A7: 3 | B7: 飞接封边 | C7: 50*50 | D7: 145
A8: 4 | B8: 补洞（每盘617片） | C8: 50*50 | D8: 16
A9: 5 | B9: 超压飞接 | C9: 38*55 | D9: 200
A10: 6 | B10: 换辊胶带 | C10: 9*12.5 | D10: 10
A11: 7 | B11: 海绵胶带 | C11: 25*10 | D11: 56
A12: 8 | B12: 防水胶带 | C12: 50*50 | D12: 400
A13: 9 | B13: 接头、补孔黑胶带 | C13: 35mm*50m | D13: 10
A14: 10 | B14: 双面水溶性胶带 | C14: 12*50 | D14: 600
A15: 11 | B15: 双面水溶性胶带 | C15: 19*50 | D15: 13000
A16: 12 | B16: 双面水溶性胶带 | C16: 25*50 | D16: 3000
A17: 13 | B17: 涂布机飞接 | C17: 75*55 | D17: 140
A18: 备注：以上报价为含13%增值税发票及运费到晨鸣集团各工厂价格，执行期限一年。
A20: 包装是否回收：
A21: 付款方式：
A22: 报价时间：
A23: 报价单位： | E23: 单位盖章：
A24: 报价人/联系方式：
A25: 注册资金：

Sheet 复膜胶
A1: 晨鸣集团覆膜胶招标报价单
A2: 日期：2020.05.03 | F2: 单位：元/吨
A3: 序号 | B3: 产品名称 | C3: 使用单位 | D3: 月用量 | E3: 单价 | F3: 备注
A5: 1 | B5: 覆膜胶 | C5: 湛江晨鸣 | D5: 7吨
C6: 寿光鸿翔 | D6: 3吨
A7: 备注：含13%增值税含运费到厂价格，执行期限：1年。
A9: 包装是否回收：
A10: 付款方式：
A11: 报价时间：
A12: 报价单位： | E12: 单位盖章：
A13: 报价人/联系方式：
A14: 注册资金：

Sheet 编织袋
A1: 助剂厂淀粉编织袋招标报价单
E2: 单位:元/条
A3: 序号 | B3: 使用 单位 | C3: 产品名称 | D3: 规格型号 | E3: 数量 条/月 | F3: 单价 | G3: 备注
A5: 1 | B5: 助剂 | C5: 30KG胚芽袋 | D5: 85g 1150*630mm | E5: 65000
A6: 2 | B6: 助剂 | C6: 40KG蛋白袋 | D6: 85g 950*600mm | E6: 3000
A7: 3 | B7: 助剂 | C7: 40KG纤维袋 | D7: 75g 1100*600mm | E7: 75000
A8: 4 | B8: 助剂 | C8: 850kg淀粉袋 | D8: 2.7kg， 1100*1100*1100mm，无字 | E8: 4000
A9: 5 | B9: 助剂 | C9: 封口线 | D9: 外观要求白色，大化纤3*3,20s 每轴净重1kg。每包24轴，毛重24kg，其中纸芯重量50g±10g。每轴线长度3500±100米 | E9: 年用量2吨 | G9: 30KG-40KG 袋使用，根据用量配套免费
A10: 备注：以上报价为含13%增值税发票及运费到晨鸣工厂价格，执行期一年
A12: 包装是否回收：
A13: 付款方式：
A14: 报价时间：
A15: 报价单位： | E15: 单位盖章： | F15: 单位盖章：
A16: 报价人/联系方式：
A17: 注册资金：

Sheet 毛布承诺寿命 (hidden)
A1: 寿光晨鸣新文化纸毛布承诺寿命表
A3: 序号 | B3: 产品类别 | C3: 名称及尺寸规格 | D3: 数量 床 | E3: 使用工厂 | F3: 承诺寿命（天/床）
F4: 汉跋 | G4: 阿斯顿强生 | H4: 福伊特 | I4: 奥伯尼 | J4: 维美德
A5: 1 | B5: 毛布 （无纺） | C5: 吸移毛布，1430g，11.2M*33M | D5: 5 | E5: 五厂 | F5: 21 | G5: 21 | H5: 30 | I5: 30 | J5: 20 | M5: 528.528 | N5: 2642.64 | O5: 140747.0064
A6: 2 | C6: 一压下毛布，1540g，11.2M*26M | D6: 5 | F6: 21 | G6: 21 | H6: 30 | I6: 30 | J6: 30 | M6: 448.448 | N6: 2242.24 | O6: 119421.7024
A7: 3 | C7: 吸移毛布 ，1430g 38.7*10.5 | D7: 6 | E7: 九厂 | F7: 21 | G7: 21 | H7: 30 | I7: 30 | J7: 20 | M7: 581.0805 | N7: 3486.483 | O7: 185690.0846
A8: 4 | C8: 一压下毛布，1570g 26*10.5 | D8: 6 | F8: 21 | G8: 21 | H8: 30 | I8: 30 | J8: 30 | M8: 428.61 | N8: 2571.66 | O8: 136966.6116
A9: 5 | B9: 毛布 （斜编） | C9: 二压上毛布，1380g 11.2M*30M | D9: 6 | E9: 五厂 | F9: 21 | G9: 21 | H9: 30 | I9: 30 | J9: 30 | M9: 463.68 | N9: 2782.08 | O9: 148173.5808
A10: 6 | C10: 二压上毛布，1380g 36*10.5 | D10: 6 | E10: 九厂 | F10: 21 | G10: 21 | H10: 30 | I10: 30 | J10: 30 | M10: 521.64 | N10: 3129.84 | O10: 166695.2784
O11: 897694.2642

Sheet 成型网承诺寿命 (hidden)
A1: 寿光晨鸣新文化纸成型网承诺寿命表
A3: 序号 | B3: 产品类别 | C3: 名称及尺寸规格 | D3: 数量 床 | E3: 使用工厂 | F3: 承诺寿命（天/床）
F4: 汉跋 | G4: 阿斯顿强生 | H4: 福伊特 | I4: 奥伯尼 | J4: 维美德 | N4: 295.475 | O4: 886.425 | P4: 104598.15
A5: 1 | B5: 三层成型网 | C5: 内网11.15M*26.5M | D5: 3 | E5: 五厂 | F5: 25 | G5: 25 | H5: 30 | I5: 30 | J5: 20 | N5: 372.41 | O5: 1117.23 | P5: 131833.14
A6: 2 | C6: 外网11.15M*33.4M | D6: 3 | F6: 25 | G6: 25 | H6: 30 | I6: 30 | J6: 40 | N6: 312.3648 | O6: 1874.1888 | P6: 221154.2784
A7: 3 | C7: 外网29.58 *10.55 | D7: 6 | E7: 九厂 | F7: 25 | G7: 25 | H7: 30 | I7: 30 | J7: 40 | N7: 274.05 | O7: 1644.3 | P7: 194027.4
A8: 4 | C8: 内网26.1*10.5 | D8: 6 | F8: 25 | G8: 25 | H8: 30 | I8: 30 | J8: 20 | P8: 651612.9684

Sheet 干网承诺清单 (hidden)
A1: 寿光晨鸣新文化纸干网承诺寿命清单
A2: 序号 | B2: 产品类别 | C2: 名称及尺寸规格 | D2: 采购数量 （床） | E2: 使用工厂 | F2: 承诺寿命（天/床）
F3: 汉跋 | G3: 阿斯顿强生 | H3: 福伊特 | I3: 奥伯尼 | J3: 维美德 | K3: 安平鑫鹏
A4: 1 | B4: 干网 螺旋 | C4: 一组干网11.1M*33M | D4: 1 | E4: 寿光五厂 | F4: 90 | G4: 90 | H4: 80 | I4: 120 | J4: 150 | K4: 120 | O4: =11.1*33 -> 366.3 | P4: =O4*D4 -> 366.3 | R4: 1931 | S4: =47.19*0.2 -> 9.438 | U4: 130
A5: 2 | C5: 二组干网11.1M*47M | D5: 3 | F5: 120 | G5: 120 | H5: 80 | I5: 120 | J5: 150 | K5: 150 | O5: =11.1*47 -> 521.7 | P5: 1565.1
A6: 3 | B6: 干网 平织 | C6: 三组干网11.1M*58M | D6: 4 | F6: 180 | G6: 180 | H6: 150 | I6: 90 | J6: 150 | K6: 180 | O6: =11.1*58 -> 643.8 | P6: 2575.2
A7: 4 | C7: 四组干网11.1M*58M | F7: 180 | G7: 180 | H7: 150 | I7: 90 | J7: 150 | K7: 180 | P7: 0
A8: 5 | C8: 五组干网11.1M*58M | F8: 180 | G8: 180 | H8: 150 | I8: 90 | J8: 150 | K8: 180 | P8: 0
A9: 6 | C9: 七组干网11.1M*58M | F9: 180 | G9: 180 | H9: 150 | I9: 90 | J9: 150 | K9: 180 | P9: 0
A10: 7 | C10: 六组干网11.1M*68.7M | D10: 1 | F10: 180 | G10: 180 | H10: 150 | I10: 90 | J10: 150 | K10: 180 | O10: =11.1*68.7 -> 762.57 | P10: 762.57 | R10: 30000 | S10: =40.28*3 -> 120.84
A11: 8 | C11: 八组干网11.1M*47M | D11: 2 | F11: 90 | G11: 90 | H11: 150 | I11: 90 | J11: 150 | K11: 120 | O11: =11.1*47 -> 521.7 | P11: 1043.4
A12: 9 | C12: 九组干网11.1M*56M | D12: 5 | F12: 90 | G12: 90 | H12: 150 | I12: 90 | J12: 150 | K12: 180 | O12: =11.1*56 -> 621.6 | P12: 3108
A13: 10 | C13: 十组上干网11.1M*42M | D13: 5 | F13: 90 | G13: 90 | H13: 150 | I13: 90 | J13: 150 | K13: 180 | O13: =11.1*42 -> 466.2 | P13: 2331
A14: 11 | C14: 十组下干网11.1M*47M | D14: 5 | F14: 90 | G14: 90 | H14: 150 | I14: 90 | J14: 150 | K14: 180 | O14: =11.1*47 -> 521.7 | P14: 2608.5
A15: 12 | C15: 一组干网32.9*10.42 | D15: 4 | E15: 寿光九厂 | F15: 90 | G15: 90 | H15: 80 | I15: 90 | J15: 150 | K15: 90 | O15: =32.9*10.42 -> 342.818 | P15: 1371.272
A16: 13 | C16: 二组干网46.9*10.42 | D16: 4 | F16: 90 | G16: 90 | H16: 80 | I16: 90 | J16: 150 | K16: 150 | O16: =46.9*10.42 -> 488.698 | P16: 1954.792
A17: 14 | C17: 三组干网68*10.42 | D17: 8 | F17: 90 | G17: 90 | H17: 150 | I17: 90 | J17: 150 | K17: 180 | O17: =68*10.42 -> 708.56 | P17: 5668.48
A18: 15 | C18: 四组干网68*10.42 | F18: 150 | G18: 150 | H18: 150 | I18: 90 | J18: 150 | K18: 180 | P18: 0
A19: 16 | C19: 五组干网68*10.42 | F19: 150 | G19: 150 | H19: 150 | I19: 90 | J19: 150 | K19: 180 | P19: 0
A20: 17 | C20: 六组干网68*10.42 | F20: 150 | G20: 150 | H20: 150 | I20: 90 | J20: 150 | K20: 180 | P20: 0
A21: 18 | C21: 七组干网68*10.42 | F21: 150 | G21: 150 | H21: 150 | I21: 90 | J21: 150 | K21: 180 | P21: 0
A22: 19 | C22: 八组干网47.3*10.42 | D22: 4 | F22: 90 | G22: 90 | H22: 150 | I22: 90 | J22: 150 | K22: 120 | O22: =47.3*10.42 -> 492.866 | P22: 1971.464
A23: 20 | C23: 九组干网60.15*10.42 | D23: 4 | F23: 90 | G23: 90 | H23: 150 | I23: 90 | J23: 150 | K23: 180 | O23: =60.15*10.42 -> 626.763 | P23: 2507.052
A24: 21 | C24: 十组上干网53.6*10.42 | D24: 4 | F24: 90 | G24: 90 | H24: 150 | I24: 90 | J24: 150 | K24: 180 | O24: =53.6*10.42 -> 558.512 | P24: 2234.048
A25: 22 | C25: 十组下干网46.9*10.42 | D25: 4 | F25: 90 | G25: 90 | H25: 150 | I25: 90 | J25: 150 | K25: 180 | O25: =46.9*10.42 -> 488.698 | P25: 1954.792
P26: =SUM(P4:P25) -> 32021.97
